bitfinex-derivatives/quotes_BTCF0:USTF0_20250718
["timestamp","ask_amount","ask_price","bid_price","bid_amount"]
[1752821887869,1.18797126,120370.0,120360.0,0.89493111]
[1752821891171,1.54877126,120370.0,120360.0,0.89493111]
[1752821892169,1.18797126,120370.0,120360.0,0.89493111]
[1752821892571,1.54877126,120370.0,120360.0,0.89493111]
[1752821893770,0.96909126,120370.0,120360.0,0.89493111]
[1752821893972,1.54865126,120370.0,120360.0,0.89493111]
[1752821894478,1.54865126,120370.0,120360.0,0.87128111]
[1752821894676,1.54865508,120370.0,120360.0,0.87128111]
[1752821895073,0.96909508,120370.0,120360.0,0.90573128]
[1752821895276,1.54861508,120370.0,120360.0,0.90573128]
[1752821898977,1.54861508,120370.0,120360.0,0.92949128]
[1752821899876,1.18781508,120370.0,120360.0,0.92949128]
[1752821900379,1.18781508,120370.0,120360.0,1.23696973]
[1752821900875,1.18781508,120370.0,120360.0,0.62201283]
[1752821901076,1.18781508,120370.0,120360.0,1.23696973]
[1752821903376,1.18773508,120370.0,120360.0,1.23696973]
[1752821903578,0.60829508,120370.0,120360.0,1.23696973]
[1752821903778,1.18773508,120370.0,120360.0,1.23696973]
[1752821903979,1.18773508,120370.0,120360.0,0.92949128]
[1752821905368,1.18773508,120370.0,120360.0,0.62201283]
[1752821905568,1.18773508,120370.0,120360.0,0.92949128]
[1752821906681,1.18773508,120370.0,120360.0,1.23696973]
[1752821907273,1.54853508,120370.0,120360.0,1.23696973]
[1752821907473,0.96909508,120370.0,120360.0,1.23696973]
[1752821907675,1.54849508,120370.0,120360.0,0.92949128]
[1752821908179,1.85597353,120370.0,120360.0,0.62201283]
[1752821908379,1.54849508,120370.0,120360.0,0.92949128]
[1752821908579,1.85597353,120370.0,120360.0,0.92949128]
[1752821909073,1.54849508,120370.0,120360.0,0.92949128]
[1752821909975,1.18769508,120370.0,120360.0,0.92949128]
[1752821910178,1.54849508,120370.0,120360.0,0.92949128]
[1752821911479,0.96909508,120370.0,120360.0,0.92949128]
[1752821911684,1.18769508,120370.0,120360.0,1.23696973]
[1752821918485,1.18761508,120370.0,120360.0,1.23696973]
[1752821923189,1.18753508,120370.0,120360.0,1.23696973]
[1752821923887,1.12938508,120370.0,120360.0,1.23696973]
[1752821924395,1.12938508,120370.0,120360.0,0.62201283]
[1752821924583,1.12938508,120370.0,120360.0,1.23696973]
[1752821924887,1.12938508,120370.0,120360.0,0.62201283]
[1752821925280,1.49018508,120370.0,120360.0,1.15396573]
[1752821925486,1.49018508,120370.0,120360.0,0.84648728]
[1752821926189,1.79766353,120370.0,120360.0,0.53900883]
[1752821926390,1.79766353,120370.0,120360.0,0.84648728]
[1752821926789,1.79762353,120370.0,120360.0,0.84648728]
[1752821927690,1.79762353,120370.0,120360.0,0.23210883]
[1752821927891,1.92204824,120370.0,120360.0,0.06609203]
[1752821928194,0.2884604,120360.0,120350.0,0.3761424]
[1752821928492,0.2884604,120360.0,120350.0,0.81507085]
[1752821928493,0.80590903,120360.0,120350.0,0.81507085]
[1752821928890,0.80590903,120360.0,120350.0,0.82655085]
[1752821929687,0.80590903,120360.0,120350.0,0.89234114]
[1752821931091,0.80590903,120360.0,120350.0,0.58081114]
[1752821931593,0.80590903,120360.0,120350.0,0.85444114]
[1752821931893,0.80590903,120360.0,120350.0,0.87823114]
[1752821932094,0.80590903,120360.0,120350.0,0.88971114]
[1752821933291,1.38506903,120360.0,120350.0,0.88971114]
[1752821935097,1.74586903,120360.0,120350.0,0.84820234]
[1752821935893,1.74586903,120360.0,120350.0,0.77070234]
[1752821936091,1.80401903,120360.0,120350.0,0.74691234]
[1752821936696,1.86216903,120360.0,120350.0,0.74691234]
[1752821937087,1.86216903,120360.0,120350.0,0.51693389]
[1752821937284,1.86216903,120360.0,120350.0,0.84820234]
[1752821937788,1.86216903,120360.0,120350.0,0.09668029]
[1752821937994,1.86216903,120360.0,120350.0,0.37326874]
[1752821938187,1.86216903,120360.0,120350.0,0.06579029]
[1752821938188,1.75689083,120360.0,120350.0,0.06579029]
[1752821938388,0.2859241,120350.0,120340.0,0.29742]
[1752821938586,1.16862273,120350.0,120340.0,0.60489845]
[1752821939190,1.16862273,120350.0,120340.0,0.11924]
[1752821939395,0.4820579,120340.0,120330.0,0.91890087]
[1752821939594,1.07947808,120340.0,120330.0,0.91890087]
[1752821940495,0.80783653,120340.0,120330.0,0.51658377]
[1752821940696,1.39533504,120340.0,120330.0,0.82406222]
[1752821940988,0.50873659,120340.0,120330.0,0.63615015]
[1752821941195,1.39533504,120340.0,120330.0,0.20861]
[1752821941394,1.39533504,120340.0,120330.0,0.51608845]
[1752821941595,1.39533504,120340.0,120330.0,0.68216015]
[1752821942293,1.39533504,120340.0,120330.0,0.3746817]
[1752821942494,1.39533504,120340.0,120330.0,0.68216015]
[1752821942988,1.39533504,120340.0,120330.0,0.3746817]
[1752821943193,1.39533504,120340.0,120330.0,0.68216015]
[1752821943696,1.39533504,120340.0,120330.0,0.68416015]
[1752821944095,1.38695653,120340.0,120330.0,0.82745343]
[1752821944296,1.38695653,120340.0,120330.0,0.85124343]
[1752821944897,0.80783653,120340.0,120330.0,0.85124343]
[1752821945197,1.38695653,120340.0,120330.0,0.85124343]
[1752821947700,1.38691653,120340.0,120330.0,0.85124343]
[1752821949095,1.38691653,120340.0,120330.0,0.54376498]
[1752821949299,1.38691653,120340.0,120330.0,0.68517173]
[1752821949500,1.16863653,120340.0,120330.0,0.68517173]
[1752821949701,1.74775653,120340.0,120330.0,0.68517173]
[1752821950100,1.74775653,120340.0,120330.0,0.06879328]
[1752821950297,1.74775653,120340.0,120330.0,0.37627173]
[1752821950497,1.74775653,120340.0,120330.0,0.06879328]
[1752821951201,1.74775653,120340.0,120330.0,0.23486498]
[1752821951701,1.74767653,120340.0,120330.0,0.81597343]
[1752821951900,1.74767653,120340.0,120330.0,0.85124343]
[1752821952704,1.38687653,120340.0,120330.0,0.85124343]
[1752821952903,1.74767653,120340.0,120330.0,0.85124343]
[1752821953603,1.44019808,120340.0,120330.0,0.85124343]
[1752821953904,1.38687653,120340.0,120330.0,0.85124343]
[1752821954402,1.38687653,120340.0,120330.0,0.8513558]
[1752821954603,1.38687653,120340.0,120330.0,0.54387735]
[1752821954903,1.38687653,120340.0,120330.0,0.6852841]
[1752821955104,1.38687653,120340.0,120330.0,0.8513559]
[1752821955598,1.38687653,120340.0,120330.0,0.6852841]
[1752821955804,1.38687653,120340.0,120330.0,0.8513559]
[1752821956305,1.38687653,120340.0,120330.0,0.6852841]
[1752821956505,1.39282584,120340.0,120330.0,0.8513559]
[1752821956901,1.39282584,120340.0,120330.0,0.6852841]
[1752821959503,1.75362584,120340.0,120330.0,0.6852841]
[1752821960908,1.44614739,120340.0,120330.0,0.6852841]
[1752821961206,1.75362584,120340.0,120330.0,0.6852841]
[1752821962609,1.75362584,120340.0,120330.0,0.37780565]
[1752821962805,1.75362584,120340.0,120330.0,0.6852841]
[1752821963505,1.39282584,120340.0,120330.0,0.6852841]
[1752821963706,1.75362584,120340.0,120330.0,0.6852841]
[1752821964710,1.77439584,120340.0,120330.0,0.6852841]
[1752821965707,1.10611739,120340.0,120330.0,0.6852841]
[1752821966008,1.77439584,120340.0,120330.0,0.6852841]
[1752821966606,1.77439584,120340.0,120330.0,0.8513559]
[1752821967300,1.77439584,120340.0,120330.0,0.37780565]
[1752821967504,1.77439584,120340.0,120330.0,0.8513559]
[1752821967803,1.41359584,120340.0,120330.0,0.8513559]
[1752821968210,1.77439584,120340.0,120330.0,0.6852841]
[1752821969011,1.77439584,120340.0,120330.0,0.8513559]
[1752821974816,1.77439584,120340.0,120330.0,0.54387745]
[1752821975018,1.41359584,120340.0,120330.0,0.8513559]
[1752821975218,1.77439584,120340.0,120330.0,0.8513559]
[1752821975620,1.41359584,120340.0,120330.0,0.8513559]
[1752821975819,1.77439584,120340.0,120330.0,0.8513559]
[1752821976020,1.77439584,120340.0,120330.0,0.6852841]
[1752821976221,1.77439584,120340.0,120330.0,0.8513559]
[1752821980121,1.77439584,120340.0,120330.0,0.54387745]
[1752821980321,1.77439584,120340.0,120330.0,0.8513559]
[1752821981518,1.83255584,120340.0,120330.0,0.8513559]
[1752821982427,1.87409584,120340.0,120330.0,0.54387745]
[1752821982621,1.87409584,120340.0,120330.0,0.8513559]
[1752821983432,1.87409584,120340.0,120330.0,0.54387745]
[1752821983632,1.87409584,120340.0,120330.0,0.8513559]
[1752821983930,1.51329584,120340.0,120330.0,0.8513559]
[1752821984132,1.87409584,120340.0,120330.0,0.8513559]
[1752821984627,1.87409584,120340.0,120330.0,0.54387745]
[1752821984828,1.87409584,120340.0,120330.0,0.8513559]
[1752821985226,1.87409584,120340.0,120330.0,0.54387745]
[1752821985726,1.87409584,120340.0,120330.0,0.8513559]
[1752821985933,1.87409584,120340.0,120330.0,0.54387745]
[1752821986130,1.87409584,120340.0,120330.0,0.8513559]
[1752821986733,1.56661739,120340.0,120330.0,0.8513559]
[1752821987031,1.87409584,120340.0,120330.0,0.8513559]
[1752821987233,1.87409584,120340.0,120330.0,0.54387745]
[1752821987531,1.87409584,120340.0,120330.0,0.8513559]
[1752821987733,1.87409584,120340.0,120330.0,0.6852841]
[1752821988234,1.87409584,120340.0,120330.0,0.8513555]
[1752821988437,1.51329584,120340.0,120330.0,0.8513555]
[1752821988632,1.87409584,120340.0,120330.0,0.8513555]
[1752821990934,1.51329584,120340.0,120330.0,0.8513555]
[1752821991136,1.87409584,120340.0,120330.0,0.8513555]
[1752821992327,1.87409584,120340.0,120330.0,0.54387705]
[1752821992635,1.87409584,120340.0,120330.0,0.06890565]
[1752821993434,1.87409584,120340.0,120330.0,0.23497705]
[1752821993839,1.87409584,120340.0,120330.0,0.35211705]
[1752821994637,1.89486584,120340.0,120330.0,0.23495565]
[1752821996735,1.89486584,120340.0,120330.0,0.40102705]
[1752821997136,1.89486584,120340.0,120330.0,0.43378705]
[1752821997435,1.89486584,120340.0,120330.0,0.8575655]
[1752821998137,1.89486584,120340.0,120330.0,0.38401565]
[1752821998326,1.89486584,120340.0,120330.0,0.6914941]
[1752821998736,1.89486584,120340.0,120330.0,0.38401565]
[1752821998937,1.89486584,120340.0,120330.0,0.6914941]
[1752821999138,1.89486584,120340.0,120330.0,0.8575655]
[1752821999437,1.89486584,120340.0,120330.0,0.55008705]
[1752821999641,1.89486584,120340.0,120330.0,0.8575655]
[1752822000537,1.00834739,120340.0,120330.0,0.8575655]
[1752822000738,1.89430584,120340.0,120330.0,0.8575655]
[1752822001140,1.95242584,120340.0,120330.0,0.8575655]
[1752822001343,0.50958739,120340.0,120330.0,1.52584395]
[1752822001641,0.22364949,120340.0,120330.0,1.52584395]
[1752822001841,0.14055481,120340.0,120330.0,1.69204395]
[1752822002134,0.05746013,120340.0,120330.0,1.37696662]
[1752822002336,0.05746013,120340.0,120330.0,1.95540662]
[1752822002640,0.04847,120350.0,120340.0,0.62259605]
[1752822002641,0.3374838,120350.0,120340.0,0.62259605]
[1752822002940,0.3374838,120350.0,120340.0,0.98339605]
[1752822003340,0.3374838,120350.0,120340.0,1.56183605]
[1752822004042,0.3374838,120350.0,120340.0,1.70230605]
[1752822004239,0.17144,120350.0,120340.0,1.70230605]
[1752822004542,0.04847,120350.0,120340.0,1.70222605]
[1752822005138,1.0053615,120360.0,120350.0,0.2917738]
[1752822005448,0.92226682,120360.0,120350.0,0.767092]
[1752822005744,0.38544682,120360.0,120350.0,0.767092]
[1752822006948,0.38644682,120360.0,120350.0,0.767092]
[1752822007243,0.43491682,120360.0,120350.0,1.127892]
[1752822007446,0.43491682,120360.0,120350.0,1.345412]
[1752822007646,0.32737,120360.0,120350.0,1.345412]
[1752822007841,0.4934,120360.0,120350.0,0.767092]
[1752822008042,0.4934,120360.0,120350.0,0.45961355]
[1752822008346,0.4934,120360.0,120350.0,1.345372]
[1752822008845,0.4944,120360.0,120350.0,1.35356864]
[1752822009247,0.4944,120360.0,120350.0,0.77528864]
[1752822009449,0.4944,120360.0,120350.0,1.35356864]
[1752822010842,0.90661,120360.0,120350.0,1.35356864]
[1752822011447,0.90661,120360.0,120350.0,1.04609019]
[1752822011647,0.90661,120360.0,120350.0,1.35356864]
[1752822011949,0.32837,120360.0,120350.0,1.35356864]
[1752822012648,0.24529537,120360.0,120350.0,1.35356864]
[1752822012949,0.25676537,120360.0,120350.0,1.35348864]
[1752822013150,0.56424382,120360.0,120350.0,1.35348864]
[1752822013652,0.25676537,120360.0,120350.0,1.35348864]
[1752822013852,0.28056278,120360.0,120350.0,1.35348864]
[1752822014148,0.44659278,120360.0,120350.0,1.35348864]
[1752822015053,0.75407123,120360.0,120350.0,1.04601019]
[1752822015251,0.75407123,120360.0,120350.0,1.35348864]
[1752822015954,0.75407123,120360.0,120350.0,1.345292]
[1752822017854,0.75407123,120360.0,120350.0,1.03781355]
[1752822018058,0.75407123,120360.0,120350.0,1.345292]
[1752822018355,1.33219123,120360.0,120350.0,1.03773355]
[1752822018556,1.33219123,120360.0,120350.0,1.345212]
[1752822018951,1.02471278,120360.0,120350.0,1.345212]
[1752822019157,1.33219123,120360.0,120350.0,1.345212]
[1752822019455,1.33215123,120360.0,120350.0,1.345172]
[1752822021360,1.35512123,120360.0,120350.0,0.92055355]
[1752822021555,1.35512123,120360.0,120350.0,1.117422]
[1752822021756,1.40844278,120360.0,120350.0,0.23186355]
[1752822021952,1.44531968,120360.0,120350.0,0.2012238]
[1752822022155,0.166044,120350.0,120340.0,0.96124464]
[1752822022358,1.17507986,120350.0,120340.0,0.97333464]
[1752822022556,0.86760141,120350.0,120340.0,1.28081309]
[1752822022756,1.44564141,120350.0,120340.0,0.81240309]
[1752822022951,1.75311986,120350.0,120340.0,0.86159309]
[1752822025460,1.79465986,120350.0,120340.0,0.86159309]
[1752822026952,1.79465986,120350.0,120340.0,0.82007949]
[1752822027163,1.80312497,120350.0,120340.0,0.82007949]
[1752822027362,1.80312497,120350.0,120340.0,0.51260104]
[1752822027558,1.80312497,120350.0,120340.0,0.65147729]
[1752822028362,1.80312497,120350.0,120340.0,0.34399884]
[1752822028962,1.79465986,120350.0,120340.0,0.34399884]
[1752822029659,1.80286751,120350.0,120340.0,0.34399884]
[1752822030660,1.92812187,120350.0,120340.0,0.04389415]
[1752822030959,0.4600478,120340.0,120330.0,0.2322315]
[1752822031164,1.75305366,120340.0,120330.0,0.2322315]
[1752822032366,1.75305366,120340.0,120330.0,0.2332315]
[1752822032662,1.75305366,120340.0,120330.0,0.2342315]
[1752822032862,1.75305366,120340.0,120330.0,0.1927144]
[1752822033064,1.75305366,120340.0,120330.0,0.2048044]
[1752822033559,1.75305366,120340.0,120330.0,0.2365344]
[1752822035166,1.75305366,120340.0,120330.0,0.54401285]
[1752822035966,1.75305366,120340.0,120330.0,0.73783784]
[1752822036168,1.17509366,120340.0,120330.0,0.73783784]
[1752822036367,1.75305366,120340.0,120330.0,0.73783784]
[1752822039567,1.75305366,120340.0,120330.0,0.73784484]
[1752822040571,1.44557521,120340.0,120330.0,0.73784484]
[1752822040871,1.75305366,120340.0,120330.0,0.73784484]
[1752822043770,1.39225366,120340.0,120330.0,0.73784484]
[1752822044069,1.75305366,120340.0,120330.0,0.73784484]
[1752822045168,1.75305366,120340.0,120330.0,0.38117639]
[1752822045369,1.75305366,120340.0,120330.0,0.68865484]
[1752822046573,1.39225366,120340.0,120330.0,0.68865484]
[1752822046775,1.75305366,120340.0,120330.0,0.68865484]
[1752822049177,1.75305366,120340.0,120330.0,0.38117639]
[1752822049374,1.17509366,120340.0,120330.0,0.30327639]
[1752822049574,1.75289366,120340.0,120330.0,0.06873499]
[1752822049878,1.75289366,120340.0,120330.0,0.23480639]
[1752822051578,1.75289366,120340.0,120330.0,0.25851639]
[1752822053378,1.75289366,120340.0,120330.0,0.25751639]
[1752822053581,1.75389366,120340.0,120330.0,0.25751639]
[1752822055689,1.75389366,120340.0,120330.0,0.09144499]
[1752822055990,1.75389366,120340.0,120330.0,0.06773499]
[1752822056386,1.75489366,120340.0,120330.0,0.23280639]
[1752822056990,1.44741521,120340.0,120330.0,0.23280639]
[1752822057290,1.75489366,120340.0,120330.0,0.54028484]
[1752822057485,1.75489366,120340.0,120330.0,0.23280639]
[1752822057692,1.75489366,120340.0,120330.0,0.06673499]
[1752822057992,0.4787214,120330.0,120320.0,0.74810415]
[1752822058292,0.80999726,120330.0,120320.0,0.79644415]
[1752822058492,1.17079726,120330.0,120320.0,0.79644415]
[1752822058693,0.92148881,120330.0,120320.0,0.79644415]
[1752822058992,0.56068881,120330.0,120320.0,0.91313415]
[1752822059191,0.53728881,120330.0,120320.0,0.91313415]
[1752822059490,1.15651881,120330.0,120320.0,0.91313415]
[1752822059690,1.46399726,120330.0,120320.0,0.91313415]
[1752822060292,0.99044741,120330.0,120320.0,0.97901765]
[1752822060492,1.15651881,120330.0,120320.0,0.97901765]
[1752822061088,0.24601741,120330.0,120320.0,1.91745765]
[1752822061290,0.12351741,120330.0,120320.0,1.6472961]
[1752822061693,0.12351741,120330.0,120320.0,1.91745765]
[1752822061892,0.12351741,120330.0,120320.0,1.33981765]
[1752822062193,0.12351741,120330.0,120320.0,1.91745765]
[1752822062594,0.12351741,120330.0,120320.0,1.6099792]
[1752822062795,0.12351741,120330.0,120320.0,1.91745765]
[1752822063199,0.12351741,120330.0,120320.0,1.6099792]
[1752822063496,0.12351741,120330.0,120320.0,1.91745765]
[1752822064092,0.12351741,120330.0,120320.0,1.6099792]
[1752822064093,0.41208881,120330.0,120320.0,1.6099792]
[1752822064295,0.56717881,120330.0,120320.0,0.97901765]
[1752822064495,0.56717881,120330.0,120320.0,1.55661765]
[1752822065095,0.56717881,120330.0,120320.0,1.91741765]
[1752822065297,0.56717881,120330.0,120320.0,0.97901765]
[1752822065497,1.27051726,120330.0,120320.0,0.77246695]
[1752822065798,1.84811726,120330.0,120320.0,0.77246695]
[1752822066596,1.84811726,120330.0,120320.0,0.4649885]
[1752822066796,1.84811726,120330.0,120320.0,0.77246695]
[1752822068300,1.84811726,120330.0,120320.0,0.82080695]
[1752822070101,1.82431985,120330.0,120320.0,0.82080695]
[1752822070302,1.68205862,120330.0,120320.0,0.82080695]
[1752822070493,1.35118017,120330.0,120320.0,0.93749695]
[1752822071397,1.35118017,120330.0,120320.0,0.6300185]
[1752822071604,0.97872017,120330.0,120320.0,1.29829695]
[1752822071799,0.32596017,120330.0,120320.0,0.93749695]
[1752822072102,0.29414017,120330.0,120320.0,1.29829695]
[1752822072704,0.29414017,120330.0,120320.0,0.93749695]
[1752822073204,0.46021157,120330.0,120320.0,0.93749695]
[1752822073401,0.46021157,120330.0,120320.0,1.29829695]
[1752822073703,0.56719157,120330.0,120320.0,1.29829695]
[1752822074107,0.56719157,120330.0,120320.0,0.93749695]
[1752822076807,0.40112017,120330.0,120320.0,0.93749695]
[1752822078207,0.56719157,120330.0,120320.0,0.93749695]
[1752822079101,0.87467002,120330.0,120320.0,0.93749695]
[1752822079307,0.88657002,120330.0,120320.0,0.93749695]
[1752822081108,0.88657002,120330.0,120320.0,1.29829695]
[1752822082009,0.80347419,120330.0,120320.0,1.02464666]
[1752822082209,0.74500836,120330.0,120320.0,0.82991816]
[1752822082410,0.66191253,120330.0,120320.0,0.82991816]
[1752822082609,0.5788167,120330.0,120320.0,0.82991816]
[1752822082810,0.6108067,120330.0,120320.0,0.62215137]
[1752822083006,0.69730087,120330.0,120320.0,0.74559137]
[1752822083200,0.69202504,120330.0,120320.0,0.74559137]
[1752822083509,0.60892921,120330.0,120320.0,0.74559137]
[1752822083709,0.78947985,120330.0,120320.0,0.63845622]
[1752822083907,0.70638402,120330.0,120320.0,0.77474553]
[1752822084210,0.65527819,120330.0,120320.0,0.89131553]
[1752822084506,0.57218236,120330.0,120320.0,0.61566943]
[1752822084711,0.48908653,120330.0,120320.0,0.86278093]
[1752822085011,0.59525985,120330.0,120320.0,1.22358093]
[1752822085211,0.52406402,120330.0,120320.0,1.09890997]
[1752822085411,0.71828402,120330.0,120320.0,1.01581414]
[1752822085612,0.63518819,120330.0,120320.0,1.05821414]
[1752822085815,0.55209236,120330.0,120320.0,1.05821414]
[1752822086001,0.81154498,120330.0,120320.0,0.7333529]
[1752822086206,1.17234498,120330.0,120320.0,0.55529466]
[1752822086407,1.66660915,120330.0,120320.0,0.2084715]
[1752822086809,1.3591307,120330.0,120320.0,0.51594995]
[1752822087010,1.33779915,120330.0,120320.0,0.59698995]
[1752822087210,1.33779915,120330.0,120320.0,0.66437069]
[1752822087503,1.33779915,120330.0,120320.0,0.84935069]
[1752822087907,1.0303207,120330.0,120320.0,0.84935069]
[1752822088113,1.33779915,120330.0,120320.0,0.84935069]
[1752822088313,1.69859915,120330.0,120320.0,0.84935069]
[1752822088515,1.33779915,120330.0,120320.0,0.84935069]
[1752822090512,1.33779915,120330.0,120320.0,0.73278069]
[1752822091417,1.33779915,120330.0,120320.0,0.73279429]
[1752822092013,1.69859915,120330.0,120320.0,0.73279429]
[1752822093714,1.70694533,120330.0,120320.0,0.42531584]
[1752822093913,1.70694533,120330.0,120320.0,0.73279429]
[1752822094713,1.56095269,120330.0,120320.0,0.06738074]
[1752822094911,0.2877952,120320.0,120310.0,0.2491443]
[1752822095116,1.17429085,120320.0,120310.0,0.2491443]
[1752822095415,1.17429085,120320.0,120310.0,0.66743275]
[1752822095816,1.17429085,120320.0,120310.0,0.3599543]
[1752822096110,1.17429085,120320.0,120310.0,0.74947275]
[1752822096711,0.3399272,120320.0,120310.0,0.5585643]
[1752822096907,0.3399272,120320.0,120310.0,0.86604275]
[1752822097417,0.3399272,120320.0,120310.0,0.93150162]
[1752822097617,0.3399272,120320.0,120310.0,0.93250162]
[1752822097820,0.5060124,120320.0,120310.0,0.94089568]
[1752822098118,0.5060124,120320.0,120310.0,0.63341723]
[1752822098511,0.5060124,120320.0,120310.0,0.93250162]
[1752822098710,0.81349085,120320.0,120310.0,0.93250162]
[1752822098912,0.5060124,120320.0,120310.0,0.62502317]
[1752822099317,0.5060124,120320.0,120310.0,0.9980448]
[1752822099619,0.5060124,120320.0,120310.0,0.62502317]
[1752822100019,0.5060124,120320.0,120310.0,0.9980448]
[1752822100319,0.5060124,120320.0,120310.0,0.62502317]
[1752822100719,0.3399272,120320.0,120310.0,0.62502317]
[1752822101723,0.5060124,120320.0,120310.0,0.9980448]
[1752822102625,0.5267824,120320.0,120310.0,0.9980448]
[1752822102820,0.3606972,120320.0,120310.0,0.9980448]
[1752822104825,0.5267824,120320.0,120310.0,0.9980448]
[1752822105027,0.3606972,120320.0,120310.0,0.9980448]
[1752822105326,0.14108,120320.0,120310.0,1.3588448]
[1752822105528,0.02077,120320.0,120310.0,1.3588448]
[1752822105725,0.02077,120320.0,120310.0,1.04407605]
[1752822105926,1.0208,120340.0,120330.0,0.1660713]
[1752822106233,1.26794006,120340.0,120330.0,0.80224293]
[1752822106424,1.26794006,120340.0,120330.0,0.81069295]
[1752822106625,1.26794006,120340.0,120330.0,0.80224293]
[1752822106925,0.69074006,120340.0,120330.0,0.80224293]
[1752822107124,1.26794006,120340.0,120330.0,0.80224293]
[1752822107525,0.78642006,120340.0,120330.0,0.80224293]
[1752822107722,0.30019,120340.0,120330.0,1.74020293]
[1752822107923,0.30019,120340.0,120330.0,1.78547293]
[1752822108125,0.05289092,120340.0,120330.0,1.78547293]
[1752822108722,0.2096,120350.0,120340.0,0.1660576]
[1752822108924,0.26054,120350.0,120340.0,0.85499923]
[1752822109125,0.23304205,120350.0,120340.0,0.85499923]
[1752822109325,0.09634,120350.0,120340.0,1.43215923]
[1752822109827,0.21112,120350.0,120340.0,0.85499923]
[1752822110029,0.21312,120350.0,120340.0,1.43215923]
[1752822110227,0.21312,120350.0,120340.0,1.0591376]
[1752822110527,0.21312,120350.0,120340.0,1.43215923]
[1752822112230,0.09834,120350.0,120340.0,1.43215923]
[1752822113729,0.10134,120350.0,120340.0,1.43215923]
[1752822115634,0.21612,120350.0,120340.0,1.43215923]
[1752822116028,0.10134,120350.0,120340.0,1.43215923]
[1752822116533,0.21612,120350.0,120340.0,1.43215923]
[1752822116830,0.28276,120350.0,120340.0,1.43215923]
[1752822117029,0.28276,120350.0,120340.0,1.43203923]
[1752822117030,0.32898,120350.0,120340.0,1.43203923]
[1752822117331,0.35300327,120350.0,120340.0,1.43203923]
[1752822120430,0.28368327,120350.0,120340.0,1.43203923]
[1752822121524,0.28368327,120350.0,120340.0,1.43199923]
[1752822122126,0.28368327,120350.0,120340.0,1.43195923]
[1752822123333,0.28368327,120350.0,120340.0,0.85499923]
[1752822123533,0.28368327,120350.0,120340.0,1.43195923]
[1752822123738,0.28368327,120350.0,120340.0,0.85499923]
[1752822124536,0.28368327,120350.0,120340.0,1.43195923]
[1752822125338,0.28368327,120350.0,120340.0,1.0589376]
[1752822125638,0.28368327,120350.0,120340.0,1.43195923]
[1752822127939,0.28368327,120350.0,120340.0,1.0589376]
[1752822128139,0.28368327,120350.0,120340.0,1.43195923]
[1752822128542,0.28368327,120350.0,120340.0,1.43187923]
[1752822129737,0.26291327,120350.0,120340.0,1.43187923]
[1752822131639,0.26291327,120350.0,120340.0,0.85499923]
[1752822132136,0.26291327,120350.0,120340.0,1.0588176]
[1752822132337,0.26291327,120350.0,120340.0,1.43183923]
[1752822132746,0.42895697,120350.0,120340.0,1.43183923]
[1752822133846,0.26291327,120350.0,120340.0,1.43183923]
[1752822134350,0.42895697,120350.0,120340.0,1.43183923]
[1752822135044,0.45205697,120350.0,120340.0,1.43179923]
[1752822137250,0.45205697,120350.0,120340.0,1.0587776]
[1752822137451,0.42895697,120350.0,120340.0,1.43179923]
[1752822137850,0.45205697,120350.0,120340.0,1.43179923]
[1752822138152,0.42895697,120350.0,120340.0,0.85499923]
[1752822138353,0.42895697,120350.0,120340.0,1.43179923]
[1752822138855,0.45215697,120350.0,120340.0,1.43179923]
[1752822139059,0.02902327,120350.0,120340.0,1.43179923]
[1752822141654,0.02902327,120350.0,120340.0,1.79255923]
[1752822141842,0.02902327,120350.0,120340.0,1.21579923]
[1752822142047,0.02902327,120350.0,120340.0,1.79255923]
[1752822144153,0.02902327,120350.0,120340.0,1.4195376]
[1752822144353,0.02902327,120350.0,120340.0,1.79255923]
[1752822145453,0.19506697,120350.0,120340.0,1.4194976]
[1752822145654,0.19506697,120350.0,120340.0,1.79251923]
[1752822146657,0.39197697,120350.0,120340.0,1.79251923]
[1752822147056,0.39197697,120350.0,120340.0,1.83891965]
[1752822147256,0.39197697,120350.0,120340.0,1.4194976]
[1752822147456,0.39197697,120350.0,120340.0,1.83891965]
[1752822149160,0.43506697,120350.0,120340.0,1.26219965]
[1752822149359,0.85448902,120350.0,120340.0,1.83887965]
[1752822149955,0.43506697,120350.0,120340.0,1.83887965]
[1752822150261,0.43506697,120350.0,120340.0,1.4194576]
[1752822150555,0.85448902,120350.0,120340.0,1.0586575]
[1752822150755,0.87768902,120350.0,120340.0,1.47807955]
[1752822150961,0.50448697,120350.0,120340.0,1.47807955]
[1752822151157,0.92390902,120350.0,120340.0,1.47807955]
[1752822151660,1.28470902,120350.0,120340.0,1.47807955]
[1752822151861,0.11112327,120350.0,120340.0,1.47807955]
[1752822152051,0.02900675,120350.0,120340.0,1.47807955]
[1752822152750,0.02900675,120350.0,120340.0,1.0586575]
[1752822152952,0.02900675,120350.0,120340.0,1.47807955]
[1752822153659,0.19505055,120350.0,120340.0,1.47807955]
[1752822154060,0.30986055,120350.0,120340.0,1.47807955]
[1752822154253,0.39196055,120350.0,120340.0,1.47807955]
[1752822154662,0.43505055,120350.0,120340.0,1.47807955]
[1752822154860,0.8776726,120350.0,120340.0,1.47807955]
[1752822155961,0.9238926,120350.0,120340.0,1.47807955]
[1752822157463,0.9820526,120350.0,120340.0,1.47807955]
[1752822158665,0.56263055,120350.0,120340.0,1.47807955]
[1752822158866,0.9820526,120350.0,120340.0,1.47807955]
[1752822159060,0.9358326,120350.0,120340.0,1.47807955]
[1752822160166,0.51641055,120350.0,120340.0,1.47807955]
[1752822160362,0.9358326,120350.0,120340.0,1.47807955]
[1752822161168,0.91182585,120350.0,120340.0,1.47807955]
[1752822161964,0.74578205,120350.0,120340.0,1.47807955]
[1752822162265,0.8798,120350.0,120340.0,1.47803955]
[1752822162465,0.76499,120350.0,120340.0,1.47803955]
[1752822163271,1.0458437,120350.0,120340.0,1.47803955]
[1752822163875,0.8798,120350.0,120340.0,1.47803955]
[1752822164577,1.0458438,120350.0,120340.0,1.47803955]
[1752822167179,1.0458438,120350.0,120340.0,1.0586175]
[1752822167376,1.48846585,120350.0,120340.0,1.47803955]
[1752822167577,1.53468585,120350.0,120340.0,1.47803955]
[1752822168580,1.1152638,120350.0,120340.0,1.47803955]
[1752822168777,1.53468585,120350.0,120340.0,1.47803955]
[1752822169377,1.89548585,120350.0,120340.0,0.4819778]
[1752822169775,1.44376705,120350.0,120340.0,0.08003]
[1752822169971,0.4767078,120340.0,120330.0,0.04556]
[1752822170180,1.83352985,120340.0,120330.0,0.04556]
[1752822170379,1.95845105,120340.0,120330.0,0.04556]
[1752822170581,1.95845105,120340.0,120330.0,0.2116316]
[1752822170976,1.91205046,120340.0,120330.0,0.2116316]
[1752822171683,1.91405046,120340.0,120330.0,0.2116316]
[1752822171983,1.91505046,120340.0,120330.0,0.2116316]
[1752822175784,0.1660716,120330.0,120320.0,0.4740637]
[1752822175984,1.21054306,120330.0,120320.0,0.5689937]
[1752822176186,1.33489057,120330.0,120320.0,0.5689937]
[1752822176789,1.91149057,120330.0,120320.0,0.5689937]
[1752822177489,1.91967551,120330.0,120320.0,0.5689937]
[1752822177789,1.33489057,120330.0,120320.0,0.5689937]
[1752822177990,1.91153057,120330.0,120320.0,0.5689937]